[Event "*** Titled Tuesday Blitz"]
[Site "Chess.com"]
[Date "2020.11.10"]
[Round "7"]
[White "Blitzking642"]
[Black "yourstrulyme"]
[Result "1-0"]
[WhiteElo "2289"]
[BlackElo "2380"]
[TimeControl "180+1"]
[EndTime "11:22:47 PST"]
[Termination "Blitzking642 won on time"]

1. e4 {[%clk 0:03:00.9]} 1... Nf6 {[%clk 0:03:00.9]} 2. Nc3 {[%clk 0:02:58.2]}
2... d5 {[%clk 0:03:00]} 3. e5 {[%clk 0:02:55]} 3... d4 {[%clk 0:02:57.6]} 4.
exf6 {[%clk 0:02:53.8]} 4... dxc3 {[%clk 0:02:57.8]} 5. fxg7 {[%clk 0:02:51.3]}
5... cxd2+ {[%clk 0:02:58.1]} 6. Bxd2 {[%clk 0:02:48.3]} 6... Bxg7 {[%clk
0:02:58.5]} 7. Qf3 {[%clk 0:02:48]} 7... O-O {[%clk 0:02:49]} 8. O-O-O {[%clk
0:02:45.1]} 8... Nc6 {[%clk 0:02:43.8]} 9. Bc3 {[%clk 0:02:21.6]} 9... Qe8
{[%clk 0:02:25.3]} 10. Bxg7 {[%clk 0:02:06]} 10... Kxg7 {[%clk 0:02:25.1]} 11.
Qg3+ {[%clk 0:02:00.5]} 11... Kh8 {[%clk 0:02:24.8]} 12. Qxc7 {[%clk 0:01:59.8]}
12... Bf5 {[%clk 0:02:23.3]} 13. Bd3 {[%clk 0:01:53.8]} 13... Rc8 {[%clk
0:02:21.4]} 14. Qxb7 {[%clk 0:01:50.1]} 14... Rb8 {[%clk 0:01:28.1]} 15. Qc7
{[%clk 0:01:44.7]} 15... Bxd3 {[%clk 0:01:27.5]} 16. Rxd3 {[%clk 0:01:44]} 16...
Nb4 {[%clk 0:01:28]} 17. Rg3 {[%clk 0:01:22.5]} 17... Qa4 {[%clk 0:01:06.2]} 18.
Ra3 {[%clk 0:00:39.6]} 18... Nxa2+ {[%clk 0:01:05.2]} 19. Kd1 {[%clk 0:00:39.6]}
19... Qd4+ {[%clk 0:01:01.2]} 20. Rd3 {[%clk 0:00:37.1]} 20... Qxf2 {[%clk
0:00:50.8]} 21. Ne2 {[%clk 0:00:26.8]} 21... Rxb2 {[%clk 0:00:47.4]} 22. Qxe7
{[%clk 0:00:19.4]} 22... Rbb8 {[%clk 0:00:13.3]} 23. Qe5+ {[%clk 0:00:18.9]}
23... f6 {[%clk 0:00:13]} 24. Qg3 {[%clk 0:00:17.1]} 24... Qxg3 {[%clk
0:00:10.3]} 25. Nxg3 {[%clk 0:00:18]} 25... Rb1+ {[%clk 0:00:10.6]} 26. Kd2
{[%clk 0:00:18.3]} 26... Rxh1 {[%clk 0:00:11.5]} 27. Nxh1 {[%clk 0:00:18.6]}
27... Nb4 {[%clk 0:00:08.1]} 28. Rd7 {[%clk 0:00:17.9]} 28... Nc6 {[%clk
0:00:07.3]} 29. Rc7 {[%clk 0:00:17.3]} 29... Rd8+ {[%clk 0:00:06.2]} 30. Kc3
{[%clk 0:00:16.1]} 30... Nd4 {[%clk 0:00:05.3]} 31. Kc4 {[%clk 0:00:10.3]} 31...
a5 {[%clk 0:00:02.4]} 32. c3 {[%clk 0:00:10.6]} 32... Nf5 {[%clk 0:00:02]} 33.
Ra7 {[%clk 0:00:10.4]} 33... Ne3+ {[%clk 0:00:02.2]} 34. Kc5 {[%clk 0:00:09.1]}
34... Rc8+ {[%clk 0:00:02]} 35. Kd4 {[%clk 0:00:08.9]} 35... Nxg2 {[%clk
0:00:02.1]} 36. c4 {[%clk 0:00:08.5]} 36... Nf4 {[%clk 0:00:02]} 37. Rxa5 {[%clk
0:00:07.1]} 37... Ne6+ {[%clk 0:00:02.2]} 38. Kd5 {[%clk 0:00:06.4]} 38... Nf4+
{[%clk 0:00:01.9]} 39. Kd4 {[%clk 0:00:05.8]} 39... Ne6+ {[%clk 0:00:02]} 40.
Kc3 {[%clk 0:00:05.3]} 40... Kg7 {[%clk 0:00:02.2]} 41. Ng3 {[%clk 0:00:05.3]}
41... Kg6 {[%clk 0:00:02]} 42. Ne4 {[%clk 0:00:05.4]} 42... f5 {[%clk
0:00:01.7]} 43. Nd6 {[%clk 0:00:05.7]} 43... Rc6 {[%clk 0:00:01.6]} 44. Nb7
{[%clk 0:00:04.4]} 44... f4 {[%clk 0:00:01.2]} 45. c5 {[%clk 0:00:02.8]} 45...
f3 {[%clk 0:00:01.1]} 46. Kc4 {[%clk 0:00:03]} 1-0

[Event "*** Titled Tuesday Blitz"]
[Site "Chess.com"]
[Date "2020.11.10"]
[Round "7"]
[White "PavelShkapenko"]
[Black "Unknown_IM"]
[Result "1-0"]
[WhiteElo "2667"]
[BlackElo "2383"]
[TimeControl "180+1"]
[EndTime "11:22:49 PST"]
[Termination "PavelShkapenko won by checkmate"]

1. e4 {[%clk 0:03:00.9]} 1... e5 {[%clk 0:02:58.3]} 2. Nf3 {[%clk 0:02:59.5]}
2... Nc6 {[%clk 0:02:56.8]} 3. Bc4 {[%clk 0:02:59.3]} 3... Bc5 {[%clk 0:02:56]}
4. c3 {[%clk 0:02:58.9]} 4... Nf6 {[%clk 0:02:55.5]} 5. d4 {[%clk 0:02:58.9]}
5... exd4 {[%clk 0:02:55.6]} 6. cxd4 {[%clk 0:02:59.1]} 6... Bb4+ {[%clk
0:02:54.9]} 7. Bd2 {[%clk 0:02:59.5]} 7... Nxe4 {[%clk 0:02:52.6]} 8. Bxb4
{[%clk 0:02:58.8]} 8... Nxb4 {[%clk 0:02:53.1]} 9. Bxf7+ {[%clk 0:02:59.2]} 9...
Kxf7 {[%clk 0:02:52.8]} 10. Qb3+ {[%clk 0:02:59.4]} 10... Kf8 {[%clk 0:02:52.8]}
11. Qxb4+ {[%clk 0:02:59.4]} 11... Qe7 {[%clk 0:02:53.3]} 12. Qxe7+ {[%clk
0:02:59.7]} 12... Kxe7 {[%clk 0:02:53.8]} 13. O-O {[%clk 0:03:00.6]} 13... Nf6
{[%clk 0:02:49.2]} 14. Nc3 {[%clk 0:02:57.2]} 14... d6 {[%clk 0:02:46.4]} 15.
Rfe1+ {[%clk 0:02:49.2]} 15... Kd8 {[%clk 0:02:45.2]} 16. d5 {[%clk 0:02:39.7]}
16... Rf8 {[%clk 0:02:42]} 17. Nd4 {[%clk 0:02:37.3]} 17... Bd7 {[%clk
0:02:34.2]} 18. f3 {[%clk 0:02:35.7]} 18... Re8 {[%clk 0:02:32]} 19. h4 {[%clk
0:02:32.1]} 19... Re7 {[%clk 0:02:29.4]} 20. g4 {[%clk 0:02:30]} 20... h6 {[%clk
0:02:24.8]} 21. g5 {[%clk 0:02:17.3]} 21... hxg5 {[%clk 0:02:24.3]} 22. hxg5
{[%clk 0:02:18.1]} 22... Nh5 {[%clk 0:02:24.6]} 23. Kf2 {[%clk 0:02:01.9]} 23...
Nf4 {[%clk 0:02:21.3]} 24. Kg3 {[%clk 0:01:48.5]} 24... Ng6 {[%clk 0:02:17.2]}
25. f4 {[%clk 0:01:45.2]} 25... Ke8 {[%clk 0:01:52.6]} 26. Ne6 {[%clk 0:01:32]}
26... Bxe6 {[%clk 0:01:50.3]} 27. dxe6 {[%clk 0:01:31.7]} 27... c6 {[%clk
0:01:47.2]} 28. f5 {[%clk 0:01:30.4]} 28... Ne5 {[%clk 0:01:46.6]} 29. Rh1
{[%clk 0:01:22.3]} 29... Kd8 {[%clk 0:01:37.3]} 30. Rh8+ {[%clk 0:01:04]} 30...
Re8 {[%clk 0:01:36.4]} 31. Rah1 {[%clk 0:01:04]} 31... Kc7 {[%clk 0:01:34.5]}
32. Rxe8 {[%clk 0:01:01.4]} 32... Rxe8 {[%clk 0:01:34]} 33. Rh7 {[%clk
0:01:01.3]} 33... d5 {[%clk 0:01:23.8]} 34. Rxg7+ {[%clk 0:00:32.1]} 34... Kd6
{[%clk 0:01:21.7]} 35. Rxb7 {[%clk 0:00:30.5]} 35... Nd3 {[%clk 0:01:14.1]} 36.
g6 {[%clk 0:00:23.3]} 36... Ke5 {[%clk 0:01:11.2]} 37. Rf7 {[%clk 0:00:23]}
37... d4 {[%clk 0:01:10]} 38. Ne2 {[%clk 0:00:22.5]} 38... Nc5 {[%clk
0:01:08.2]} 39. Nxd4 {[%clk 0:00:18.4]} 39... Ne4+ {[%clk 0:01:05.3]} 40. Kg4
{[%clk 0:00:15.5]} 40... Kxd4 {[%clk 0:01:05.3]} 41. e7 {[%clk 0:00:15.3]} 41...
Ke5 {[%clk 0:01:04.5]} 42. g7 {[%clk 0:00:15]} 42... Nf6+ {[%clk 0:01:03.8]} 43.
Kg5 {[%clk 0:00:15.2]} 43... Rg8 {[%clk 0:00:46.6]} 44. Kg6 {[%clk 0:00:11.9]}
44... Ne8 {[%clk 0:00:44.1]} 45. f6 {[%clk 0:00:11.6]} 45... Ke6 {[%clk
0:00:41]} 46. Rf8 {[%clk 0:00:11.6]} 46... Nxf6 {[%clk 0:00:41.2]} 47. Rxg8
{[%clk 0:00:09]} 47... Kxe7 {[%clk 0:00:41]} 48. Rf8 {[%clk 0:00:08.7]} 48...
Nd7 {[%clk 0:00:37.3]} 49. Rf7+ {[%clk 0:00:08.7]} 49... Kd6 {[%clk 0:00:37.3]}
50. Rxd7+ {[%clk 0:00:09.1]} 50... Kxd7 {[%clk 0:00:38.2]} 51. g8=Q {[%clk
0:00:09]} 51... Kc7 {[%clk 0:00:39.1]} 52. Qc4 {[%clk 0:00:09.3]} 52... Kb6
{[%clk 0:00:40]} 53. Kf6 {[%clk 0:00:09.7]} 53... a6 {[%clk 0:00:40.9]} 54. Ke6
{[%clk 0:00:09.5]} 54... Ka5 {[%clk 0:00:40]} 55. Qc5+ {[%clk 0:00:08.9]} 55...
Ka4 {[%clk 0:00:39.2]} 56. b3# {[%clk 0:00:09.8]} 1-0

[Event "*** Titled Tuesday Blitz"]
[Site "Chess.com"]
[Date "2020.11.10"]
[Round "7"]
[White "bascheyaro"]
[Black "Happy1712Drummer"]
[Result "0-1"]
[WhiteElo "2734"]
[BlackElo "2239"]
[TimeControl "180+1"]
[EndTime "11:22:51 PST"]
[Termination "Happy1712Drummer won by resignation"]

1. d4 {[%clk 0:03:00.9]} 1... Nf6 {[%clk 0:02:52.7]} 2. Nc3 {[%clk 0:02:59.1]}
2... e6 {[%clk 0:02:53.4]} 3. e4 {[%clk 0:02:58.2]} 3... d5 {[%clk 0:02:53.4]}
4. e5 {[%clk 0:02:58.2]} 4... Nfd7 {[%clk 0:02:53.4]} 5. f4 {[%clk 0:02:58.4]}
5... c5 {[%clk 0:02:53.2]} 6. Nf3 {[%clk 0:02:58.5]} 6... Nc6 {[%clk 0:02:53.6]}
7. Bd3 {[%clk 0:02:58.3]} 7... Be7 {[%clk 0:02:45.2]} 8. O-O {[%clk 0:02:57.6]}
8... cxd4 {[%clk 0:02:39.8]} 9. Ne2 {[%clk 0:02:57.5]} 9... Nb4 {[%clk
0:02:39.3]} 10. Nexd4 {[%clk 0:02:56.7]} 10... Nxd3 {[%clk 0:02:38.6]} 11. cxd3
{[%clk 0:02:56.7]} 11... O-O {[%clk 0:02:34.3]} 12. f5 {[%clk 0:02:56.9]} 12...
exf5 {[%clk 0:02:27]} 13. Nxf5 {[%clk 0:02:56.5]} 13... Nc5 {[%clk 0:02:25.4]}
14. N3d4 {[%clk 0:02:47.3]} 14... g6 {[%clk 0:02:03.7]} 15. Nxe7+ {[%clk
0:01:51.5]} 15... Qxe7 {[%clk 0:02:02]} 16. Nf3 {[%clk 0:01:51.6]} 16... Bg4
{[%clk 0:01:54.3]} 17. d4 {[%clk 0:01:46.5]} 17... Ne6 {[%clk 0:01:47]} 18. Be3
{[%clk 0:01:44.8]} 18... f5 {[%clk 0:01:44.5]} 19. h3 {[%clk 0:01:38]} 19...
Bxf3 {[%clk 0:01:39.8]} 20. Qxf3 {[%clk 0:01:37.4]} 20... Qd7 {[%clk 0:01:38.9]}
21. Rac1 {[%clk 0:01:27.3]} 21... Rac8 {[%clk 0:01:37.5]} 22. Bh6 {[%clk
0:01:17.5]} 22... Rfe8 {[%clk 0:01:21.3]} 23. Rxc8 {[%clk 0:01:10.4]} 23... Rxc8
{[%clk 0:01:20.1]} 24. g4 {[%clk 0:01:10.4]} 24... f4 {[%clk 0:00:41.2]} 25. Qd3
{[%clk 0:00:52.2]} 25... g5 {[%clk 0:00:38.4]} 26. h4 {[%clk 0:00:52.5]} 26...
Qa4 {[%clk 0:00:29.6]} 27. Qf5 {[%clk 0:00:49.6]} 27... Qxd4+ {[%clk 0:00:28.4]}
28. Kh1 {[%clk 0:00:26.6]} 28... Qe4+ {[%clk 0:00:27.5]} 29. Kg1 {[%clk
0:00:19.3]} 29... Qe3+ {[%clk 0:00:17.5]} 30. Kh1 {[%clk 0:00:19.5]} 30... Qh3+
{[%clk 0:00:16.8]} 31. Kg1 {[%clk 0:00:19.3]} 31... Qg3+ {[%clk 0:00:16.9]} 32.
Kh1 {[%clk 0:00:19.6]} 32... Qxh4+ {[%clk 0:00:16.9]} 33. Kg1 {[%clk 0:00:19.5]}
33... Qxh6 {[%clk 0:00:17.1]} 34. Rd1 {[%clk 0:00:16.5]} 34... Qg6 {[%clk
0:00:16.6]} 35. Rxd5 {[%clk 0:00:15.4]} 35... Qxf5 {[%clk 0:00:14.6]} 36. gxf5
{[%clk 0:00:16.3]} 36... Ng7 {[%clk 0:00:14.7]} 37. f6 {[%clk 0:00:16.2]} 37...
Ne6 {[%clk 0:00:14.1]} 38. Rd6 {[%clk 0:00:16.7]} 38... Re8 {[%clk 0:00:13]} 39.
Rd7 {[%clk 0:00:16.5]} 39... Nd8 {[%clk 0:00:12.5]} 40. e6 {[%clk 0:00:15.5]}
40... Rxe6 {[%clk 0:00:11.2]} 41. Rxd8+ {[%clk 0:00:15.6]} 41... Kf7 {[%clk
0:00:11.7]} 42. Rd7+ {[%clk 0:00:16.2]} 42... Kxf6 {[%clk 0:00:11.7]} 43. Rxb7
{[%clk 0:00:16.9]} 43... Re7 {[%clk 0:00:11.6]} 44. Rb5 {[%clk 0:00:15.4]} 44...
Re2 {[%clk 0:00:11.1]} 45. a4 {[%clk 0:00:13.9]} 45... h5 {[%clk 0:00:10.4]} 46.
a5 {[%clk 0:00:13.8]} 46... g4 {[%clk 0:00:09.9]} 47. Rxh5 {[%clk 0:00:13.3]}
47... g3 {[%clk 0:00:09.2]} 48. Rh8 {[%clk 0:00:12.9]} 48... Rxb2 {[%clk
0:00:08.4]} 49. a6 {[%clk 0:00:11.8]} 49... Ra2 {[%clk 0:00:07.6]} 50. Kf1
{[%clk 0:00:10.6]} 50... Kg5 {[%clk 0:00:07.5]} 51. Rh2 {[%clk 0:00:09.2]} 51...
gxh2 {[%clk 0:00:05.7]} 0-1

[Event "*** Titled Tuesday Blitz"]
[Site "Chess.com"]
[Date "2020.11.10"]
[Round "7"]
[White "Grieve72"]
[Black "PriSachu"]
[Result "1-0"]
[WhiteElo "2390"]
[BlackElo "2506"]
[TimeControl "180+1"]
[EndTime "11:22:52 PST"]
[Termination "Grieve72 won by resignation"]

1. d4 {[%clk 0:03:00.9]} 1... Nf6 {[%clk 0:03:00.2]} 2. Bg5 {[%clk 0:03:00.5]}
2... g6 {[%clk 0:03:00.3]} 3. Bxf6 {[%clk 0:03:00.6]} 3... exf6 {[%clk
0:02:56.5]} 4. e3 {[%clk 0:03:01]} 4... b6 {[%clk 0:02:56.6]} 5. c4 {[%clk
0:02:58.1]} 5... Bb7 {[%clk 0:02:57.1]} 6. Nc3 {[%clk 0:02:58.6]} 6... Bg7
{[%clk 0:02:56.8]} 7. h4 {[%clk 0:02:47.6]} 7... h5 {[%clk 0:02:56]} 8. Nh3
{[%clk 0:02:47.7]} 8... d6 {[%clk 0:02:52]} 9. Nf4 {[%clk 0:02:47.1]} 9... Nd7
{[%clk 0:02:52.1]} 10. Bd3 {[%clk 0:02:46.7]} 10... f5 {[%clk 0:02:52.2]} 11.
Qc2 {[%clk 0:02:40.3]} 11... Nf6 {[%clk 0:02:46.5]} 12. f3 {[%clk 0:02:31.9]}
12... Qd7 {[%clk 0:02:42.1]} 13. O-O-O {[%clk 0:02:30]} 13... O-O-O {[%clk
0:02:39.6]} 14. d5 {[%clk 0:02:16.1]} 14... Rhe8 {[%clk 0:02:37.5]} 15. Rhe1
{[%clk 0:02:07.7]} 15... Bh6 {[%clk 0:02:35.5]} 16. Nb5 {[%clk 0:02:01.5]} 16...
Kb8 {[%clk 0:02:34.5]} 17. g3 {[%clk 0:01:58.1]} 17... Qc8 {[%clk 0:02:22.3]}
18. Nd4 {[%clk 0:01:54]} 18... Nd7 {[%clk 0:02:22]} 19. b4 {[%clk 0:01:42.6]}
19... Ne5 {[%clk 0:01:58]} 20. Kb2 {[%clk 0:01:42.2]} 20... Bg7 {[%clk
0:01:54.8]} 21. Kb3 {[%clk 0:01:42]} 21... Qd7 {[%clk 0:01:51]} 22. a4 {[%clk
0:01:39.7]} 22... Ka8 {[%clk 0:01:45.4]} 23. b5 {[%clk 0:01:30.1]} 23... a5
{[%clk 0:01:41.1]} 24. bxa6 {[%clk 0:01:18.7]} 24... Bxa6 {[%clk 0:01:41.2]} 25.
Ra1 {[%clk 0:01:02]} 25... Rb8 {[%clk 0:01:38.8]} 26. Reb1 {[%clk 0:00:52.2]}
26... c5 {[%clk 0:01:04.4]} 27. dxc6 {[%clk 0:00:36.6]} 27... Nxc6 {[%clk
0:01:03.6]} 28. Nxc6 {[%clk 0:00:32.2]} 28... Qxc6 {[%clk 0:01:04.5]} 29. Nd5
{[%clk 0:00:32.6]} 29... Qc5 {[%clk 0:00:42]} 30. Ra2 {[%clk 0:00:22.6]} 30...
Bb7 {[%clk 0:00:32.7]} 31. e4 {[%clk 0:00:15.8]} 31... Rec8 {[%clk 0:00:28]} 32.
Qd2 {[%clk 0:00:07.7]} 32... Bxd5 {[%clk 0:00:25.5]} 33. exd5 {[%clk 0:00:06.8]}
33... Re8 {[%clk 0:00:24.4]} 34. Re1 {[%clk 0:00:04.2]} 34... Qd4 {[%clk
0:00:21.7]} 35. Rxe8 {[%clk 0:00:01.7]} 35... Rxe8 {[%clk 0:00:22]} 36. a5
{[%clk 0:00:02.6]} 36... b5 {[%clk 0:00:22.4]} 37. cxb5 {[%clk 0:00:02.8]} 37...
Re3 {[%clk 0:00:19.8]} 38. Kc2 {[%clk 0:00:03]} 38... Rxf3 {[%clk 0:00:17.6]}
39. b6 {[%clk 0:00:03.1]} 39... Rf2 {[%clk 0:00:17.2]} 40. Be2 {[%clk
0:00:02.1]} 40... Qc4+ {[%clk 0:00:14.4]} 41. Kd1 {[%clk 0:00:01.9]} 41... Bc3
{[%clk 0:00:12.8]} 42. b7+ {[%clk 0:00:02.2]} 42... Kb8 {[%clk 0:00:12.6]} 43.
Bxc4 {[%clk 0:00:03.1]} 43... Bxd2 {[%clk 0:00:10.5]} 44. Rxd2 {[%clk 0:00:04]}
44... Rf3 {[%clk 0:00:10.4]} 45. a6 {[%clk 0:00:04.2]} 45... Rxg3 {[%clk
0:00:10.1]} 46. Ra2 {[%clk 0:00:04.7]} 46... Ka7 {[%clk 0:00:09.9]} 47. Rb2
{[%clk 0:00:04]} 1-0

[Event "*** Titled Tuesday Blitz"]
[Site "Chess.com"]
[Date "2020.11.10"]
[Round "7"]
[White "dropstoneDP"]
[Black "ChessWarrior7197"]
[Result "1-0"]
[WhiteElo "2940"]
[BlackElo "3007"]
[TimeControl "180+1"]
[EndTime "11:22:54 PST"]
[Termination "dropstoneDP won on time"]

1. e4 {[%clk 0:03:00.9]} 1... c6 {[%clk 0:03:00]} 2. d4 {[%clk 0:03:00.7]} 2...
d5 {[%clk 0:03:00.9]} 3. e5 {[%clk 0:02:56.4]} 3... Bf5 {[%clk 0:02:59.8]} 4. c4
{[%clk 0:02:56.5]} 4... e6 {[%clk 0:02:58.3]} 5. Nc3 {[%clk 0:02:57]} 5... Bb4
{[%clk 0:02:55.6]} 6. cxd5 {[%clk 0:02:40.6]} 6... cxd5 {[%clk 0:02:52.9]} 7. h4
{[%clk 0:02:40.4]} 7... h6 {[%clk 0:02:50.9]} 8. g4 {[%clk 0:02:40.1]} 8... Bh7
{[%clk 0:02:50.8]} 9. h5 {[%clk 0:02:40.6]} 9... Nc6 {[%clk 0:02:50.2]} 10. Bd3
{[%clk 0:02:28.8]} 10... Bxd3 {[%clk 0:02:46]} 11. Qxd3 {[%clk 0:02:29.7]} 11...
Qb6 {[%clk 0:02:46.8]} 12. Ne2 {[%clk 0:02:27.8]} 12... Nge7 {[%clk 0:02:47]}
13. f4 {[%clk 0:02:19.6]} 13... Kd7 {[%clk 0:02:46.5]} 14. Bd2 {[%clk
0:02:17.3]} 14... Qa6 {[%clk 0:02:44]} 15. Qxa6 {[%clk 0:02:13.1]} 15... bxa6
{[%clk 0:02:44.9]} 16. Na4 {[%clk 0:02:13.3]} 16... Rhb8 {[%clk 0:02:36.5]} 17.
Rc1 {[%clk 0:02:00.8]} 17... Kd8 {[%clk 0:02:24.2]} 18. b3 {[%clk 0:01:28.2]}
18... a5 {[%clk 0:02:11.4]} 19. Rh3 {[%clk 0:01:27.3]} 19... Rc8 {[%clk
0:02:06.5]} 20. Kd1 {[%clk 0:01:21.2]} 20... Rc7 {[%clk 0:02:03.4]} 21. Nc5
{[%clk 0:00:43.1]} 21... Rac8 {[%clk 0:01:57.3]} 22. Na6 {[%clk 0:00:37.1]}
22... Rb7 {[%clk 0:01:57.5]} 23. Nxb4 {[%clk 0:00:31.5]} 23... axb4 {[%clk
0:01:34.3]} 24. Rc5 {[%clk 0:00:31.1]} 24... Kd7 {[%clk 0:01:29.7]} 25. Rh2
{[%clk 0:00:20.6]} 25... a5 {[%clk 0:01:23.8]} 26. Rf2 {[%clk 0:00:20.9]} 26...
f5 {[%clk 0:01:18.5]} 27. g5 {[%clk 0:00:19.9]} 27... Rh8 {[%clk 0:01:08.4]} 28.
g6 {[%clk 0:00:19.7]} 28... Ra8 {[%clk 0:01:07]} 29. Be3 {[%clk 0:00:18]} 29...
a4 {[%clk 0:01:07.2]} 30. Nc1 {[%clk 0:00:18.5]} 30... axb3 {[%clk 0:01:07.2]}
31. Nxb3 {[%clk 0:00:17.7]} 31... Rba7 {[%clk 0:01:05.7]} 32. Rcc2 {[%clk
0:00:15.4]} 32... Nd8 {[%clk 0:00:43.8]} 33. Kc1 {[%clk 0:00:15.9]} 33... Nc8
{[%clk 0:00:43.4]} 34. Bd2 {[%clk 0:00:12.6]} 34... Rxa2 {[%clk 0:00:41.1]} 35.
Bxb4 {[%clk 0:00:12.2]} 35... Rxc2+ {[%clk 0:00:40.8]} 36. Rxc2 {[%clk
0:00:12.5]} 36... Nb6 {[%clk 0:00:39.6]} 37. Bf8 {[%clk 0:00:10.4]} 37... Nc4
{[%clk 0:00:31.3]} 38. Bxg7 {[%clk 0:00:10.8]} 38... Ra3 {[%clk 0:00:28.3]} 39.
Nc5+ {[%clk 0:00:11]} 39... Ke8 {[%clk 0:00:27.8]} 40. Rxc4 {[%clk 0:00:07.9]}
40... dxc4 {[%clk 0:00:27.7]} 41. Bxh6 {[%clk 0:00:08.6]} 41... Nc6 {[%clk
0:00:24.8]} 42. Nxe6 {[%clk 0:00:07.7]} 42... c3 {[%clk 0:00:23.9]} 43. Bf8
{[%clk 0:00:07.8]} 43... Ra2 {[%clk 0:00:17.1]} 44. g7 {[%clk 0:00:08.1]} 44...
Rg2 {[%clk 0:00:17]} 45. h6 {[%clk 0:00:07.5]} 45... Na5 {[%clk 0:00:12.9]} 46.
Nc5 {[%clk 0:00:07.8]} 46... Nc6 {[%clk 0:00:10.8]} 47. Nb3 {[%clk 0:00:05]} 1-0

[Event "*** Titled Tuesday Blitz"]
[Site "Chess.com"]
[Date "2020.11.10"]
[Round "7"]
[White "sm_sharon"]
[Black "GMJustin"]
[Result "1-0"]
[WhiteElo "2154"]
[BlackElo "2317"]
[TimeControl "180+1"]
[EndTime "11:22:55 PST"]
[Termination "sm_sharon won on time"]

1. e4 {[%clk 0:03:00.9]} 1... c5 {[%clk 0:02:50.5]} 2. Nf3 {[%clk 0:03:01.4]}
2... Nc6 {[%clk 0:02:49.2]} 3. g3 {[%clk 0:03:01.8]} 3... Nf6 {[%clk 0:02:42.3]}
4. Qe2 {[%clk 0:03:00]} 4... e5 {[%clk 0:02:29.3]} 5. Bg2 {[%clk 0:02:59.3]}
5... Be7 {[%clk 0:02:19.7]} 6. O-O {[%clk 0:02:57]} 6... O-O {[%clk 0:02:19.4]}
7. c3 {[%clk 0:02:54.7]} 7... d5 {[%clk 0:01:53.8]} 8. d3 {[%clk 0:02:54.1]}
8... d4 {[%clk 0:01:34.2]} 9. c4 {[%clk 0:02:51.2]} 9... Ne8 {[%clk 0:01:23.9]}
10. Na3 {[%clk 0:02:45.8]} 10... a6 {[%clk 0:01:13.2]} 11. Nc2 {[%clk
0:02:43.6]} 11... b5 {[%clk 0:01:08]} 12. b3 {[%clk 0:02:42.8]} 12... Nd6 {[%clk
0:01:07]} 13. Bd2 {[%clk 0:02:38.6]} 13... Rb8 {[%clk 0:00:58.9]} 14. Nfe1
{[%clk 0:02:24.8]} 14... Qb6 {[%clk 0:00:33.3]} 15. f4 {[%clk 0:02:23.8]} 15...
f5 {[%clk 0:00:30.4]} 16. exf5 {[%clk 0:02:14]} 16... Rxf5 {[%clk 0:00:12.5]}
17. Bd5+ {[%clk 0:01:45]} 17... Kh8 {[%clk 0:00:12]} 18. fxe5 {[%clk 0:01:32.9]}
18... Rxe5 {[%clk 0:00:11.7]} 19. Qf3 {[%clk 0:01:32]} 19... Be6 {[%clk
0:00:11.8]} 20. Bxc6 {[%clk 0:01:30.8]} 20... Rf8 {[%clk 0:00:11.2]} 21. Qxf8+
{[%clk 0:01:29.3]} 21... Bxf8 {[%clk 0:00:11.3]} 22. Rxf8+ {[%clk 0:01:29.4]}
22... Bg8 {[%clk 0:00:11.7]} 23. Bd5 {[%clk 0:01:29.1]} 23... Rxd5 {[%clk
0:00:11.7]} 24. cxd5 {[%clk 0:01:29.1]} 24... c4 {[%clk 0:00:09.9]} 25. bxc4
{[%clk 0:01:17.9]} 25... bxc4 {[%clk 0:00:09.6]} 26. dxc4 {[%clk 0:01:13]} 26...
d3+ {[%clk 0:00:09.3]} 27. Ne3 {[%clk 0:01:13.1]} 27... Nxc4 {[%clk 0:00:08.1]}
28. Nxd3 {[%clk 0:01:07.2]} 28... Nxd2 {[%clk 0:00:07.3]} 29. Kf2 {[%clk
0:01:04.8]} 29... Nc4 {[%clk 0:00:06.7]} 30. Re1 {[%clk 0:01:03.6]} 30... h6
{[%clk 0:00:06.8]} 31. Kf3 {[%clk 0:01:03.2]} 31... Nxe3 {[%clk 0:00:06.1]} 32.
Rxe3 {[%clk 0:01:03]} 32... Kh7 {[%clk 0:00:06.6]} 33. Nf4 {[%clk 0:01:03]}
33... Qd4 {[%clk 0:00:04.8]} 34. Ree8 {[%clk 0:01:02.4]} 34... Bxd5+ {[%clk
0:00:04]} 35. Nxd5 {[%clk 0:01:02.6]} 35... Qxd5+ {[%clk 0:00:04.2]} 36. Kf2
{[%clk 0:01:01.3]} 36... Qxa2+ {[%clk 0:00:04.1]} 37. Re2 {[%clk 0:00:59.4]}
37... Qc4 {[%clk 0:00:03.6]} 38. Rfe8 {[%clk 0:00:56.3]} 38... a5 {[%clk
0:00:03.6]} 39. R8e4 {[%clk 0:00:56.4]} 39... Qc5+ {[%clk 0:00:03.8]} 40. Kg2
{[%clk 0:00:55.2]} 40... Qb5 {[%clk 0:00:03.6]} 41. Ra2 {[%clk 0:00:52.5]} 41...
Qc6 {[%clk 0:00:02.8]} 42. Ra4 {[%clk 0:00:52.1]} 42... Qd5 {[%clk 0:00:02.6]}
43. g4 {[%clk 0:00:51]} 43... h5 {[%clk 0:00:02.7]} 44. gxh5 {[%clk 0:00:50.5]}
44... Kh6 {[%clk 0:00:02.7]} 45. Kg3 {[%clk 0:00:49.5]} 45... Qd3+ {[%clk
0:00:02.6]} 46. Kg2 {[%clk 0:00:48.9]} 46... Qd2+ {[%clk 0:00:02.8]} 47. Kg3
{[%clk 0:00:49]} 47... Kxh5 {[%clk 0:00:02.9]} 48. Rh4+ {[%clk 0:00:48.5]} 48...
Kg5 {[%clk 0:00:02.8]} 49. Rhg4+ {[%clk 0:00:48.4]} 49... Kf5 {[%clk 0:00:02.7]}
50. Raf4+ {[%clk 0:00:46.1]} 50... Ke5 {[%clk 0:00:02.9]} 51. Re4+ {[%clk
0:00:46.3]} 51... Kd5 {[%clk 0:00:03.3]} 52. Re7 {[%clk 0:00:41]} 52... Qd3+
{[%clk 0:00:03.4]} 53. Kh4 {[%clk 0:00:39.7]} 53... Qf1 {[%clk 0:00:02.8]} 54.
Rgxg7 {[%clk 0:00:38.6]} 54... Qf2+ {[%clk 0:00:02.6]} 55. Kh3 {[%clk
0:00:37.7]} 55... Qf3+ {[%clk 0:00:02.6]} 56. Kh4 {[%clk 0:00:36.5]} 56... Qf4+
{[%clk 0:00:02.8]} 57. Kh5 {[%clk 0:00:36.1]} 57... Qf3+ {[%clk 0:00:02.7]} 58.
Kg6 {[%clk 0:00:35.4]} 58... Qg2+ {[%clk 0:00:02.4]} 59. Kf7 {[%clk 0:00:35.6]}
59... Qxh2 {[%clk 0:00:02.5]} 60. Rg5+ {[%clk 0:00:35.4]} 60... Kc6 {[%clk
0:00:02.5]} 61. Rg6+ {[%clk 0:00:35.1]} 61... Kb5 {[%clk 0:00:02]} 62. Rg5+
{[%clk 0:00:34.8]} 1-0